bitfinex/quotes_SOLUSD_20251120
["timestamp","ask_amount","ask_price","bid_price","bid_amount"]
[1763667710851,1.82,132.84,132.8,0.67]
[1763667711038,1.82,132.84,132.8,13.02939526]
[1763667711650,1.82,132.84,132.79,12.35939526]
[1763667711651,14.83939526,132.84,132.79,12.35939526]
[1763667711831,14.83939526,132.84,132.79,13.03939526]
[1763667712034,13.01939526,132.83,132.79,13.03939526]
[1763667712342,13.01939526,132.83,132.78,13.03939526]
[1763667712543,12.35939526,132.82,132.78,13.03939526]
[1763667712755,1.82,132.84,132.8,12.35939526]
[1763667713258,1.82,132.84,132.82,12.35939526]
[1763667713455,9.78882769,132.87,132.83,12.35939526]
[1763667713757,1.82,132.87,132.84,12.35939526]
[1763667713940,1.82,132.87,132.85,12.35939526]
[1763667714442,1.82,132.87,132.85,13.03939526]
[1763667715041,1.82,132.87,132.85,0.68]
[1763667715240,13.01939526,132.86,132.8,0.68]
[1763667715446,13.01939526,132.86,132.81,12.35939526]
[1763667716141,12.35939526,132.85,132.81,0.68]
[1763667716345,13.01939526,132.85,132.81,0.68]
[1763667717063,12.35939526,132.85,132.81,0.68]
[1763667717364,12.35939526,132.85,132.81,13.03939526]
[1763667718229,12.35939526,132.85,132.81,0.68]
[1763667718429,13.01939526,132.85,132.81,0.68]
[1763667718734,9.78882769,132.86,132.79,12.35939526]
[1763667718735,13.01939526,132.84,132.79,12.35939526]
[1763667718939,12.35939526,132.83,132.79,12.35939526]
[1763667719140,12.35939526,132.83,132.79,13.03939526]
[1763667719453,13.01939526,132.84,132.79,13.03939526]
[1763667720246,9.78882769,132.83,132.79,13.03939526]
[1763667720678,12.35939526,132.84,132.8,0.68]
[1763667720860,9.78882769,132.83,132.8,0.68]
[1763667721041,74.62822295,132.83,132.77,61.88]
[1763667721242,74.62822295,132.83,132.77,74.23939526]
[1763667721437,9.78882769,132.81,132.77,74.23939526]
[1763667722155,22.80822295,132.81,132.76,12.35939526]
[1763667722471,12.35939526,132.8,132.76,12.35939526]
[1763667722671,9.78882769,132.81,132.77,13.03939526]
[1763667723047,9.78882769,132.81,132.78,0.68]
[1763667723248,10.44882769,132.81,132.77,13.03939526]
[1763667723450,9.78882769,132.81,132.77,12.35939526]
[1763667723656,9.78882769,132.81,132.78,0.68]
[1763667724371,9.78882769,132.82,132.78,13.03939526]
[1763667724872,0.66,132.81,132.77,12.35939526]
[1763667725170,0.66,132.81,132.76,13.03939526]
[1763667725171,9.78882769,132.8,132.76,13.03939526]
[1763667725678,18.12096,132.85,132.73,0.68]
[1763667725679,22.14822295,132.78,132.73,0.68]
[1763667725863,22.14822295,132.78,132.73,13.03939526]
[1763667726062,22.14822295,132.76,132.71,13.03939526]
[1763667726263,9.78882769,132.76,132.72,12.35939526]
[1763667726576,9.78882769,132.78,132.74,12.35939526]
[1763667726758,9.78882769,132.78,132.74,13.03939526]
[1763667727068,9.78882769,132.78,132.75,0.68]
[1763667727855,9.78882769,132.78,132.74,12.35939526]
[1763667728171,9.78882769,132.78,132.75,0.68]
[1763667728742,18.33944836,132.78,132.73,8.57062067]
[1763667729072,18.33944836,132.78,132.74,0.68]
[1763667729372,0.66,132.77,132.73,8.57062067]
[1763667729539,18.33944836,132.78,132.74,0.68]
[1763667729744,9.78882769,132.78,132.75,7.89062067]
[1763667729973,9.78882769,132.78,132.76,7.89062067]
[1763667730176,9.78882769,132.78,132.75,7.89062067]
[1763667730680,10.44882769,132.78,132.75,7.89062067]
[1763667731047,9.78882769,132.78,132.74,8.57062067]
[1763667731359,10.44882769,132.78,132.74,0.68]
[1763667731542,10.44882769,132.78,132.74,8.57062067]
[1763667732564,9.78882769,132.78,132.74,7.89062067]
[1763667732884,50.0,132.81,132.75,0.68]
[1763667733066,9.78882769,132.8,132.77,7.89062067]
[1763667733476,9.78882769,132.8,132.77,8.57062067]
[1763667734982,9.78882769,132.8,132.77,7.89062067]
[1763667735179,9.78882769,132.8,132.77,8.57062067]
[1763667735770,9.78882769,132.8,132.77,7.89062067]
[1763667736372,9.78882769,132.8,132.75,0.68]
[1763667736576,9.78882769,132.8,132.76,7.89062067]
[1763667736774,9.78882769,132.8,132.77,7.89062067]
[1763667736983,9.78882769,132.8,132.78,7.89062067]
[1763667738063,9.78882769,132.8,132.78,8.57062067]
[1763667738563,9.78882769,132.8,132.78,0.68]
[1763667738767,9.78882769,132.8,132.77,7.89062067]
[1763667739288,9.78882769,132.8,132.78,0.68]
[1763667739496,9.78882769,132.8,132.76,8.57062067]
[1763667739698,9.78882769,132.8,132.76,7.89062067]
[1763667739992,9.78882769,132.81,132.78,7.89062067]
[1763667740497,9.78882769,132.81,132.79,8.59062067]
[1763667740995,1.82,132.82,132.79,0.7]
[1763667740996,9.78882769,132.82,132.79,0.7]
[1763667741295,9.78882769,132.82,132.79,8.59062067]
[1763667741589,10.48882769,132.82,132.79,7.89062067]
[1763667741798,9.78882769,132.82,132.79,7.89062067]
[1763667742002,9.78882769,132.82,132.79,8.59062067]
[1763667742592,10.48882769,132.82,132.79,8.59062067]
[1763667742802,9.78882769,132.82,132.79,0.7]
[1763667743695,13.10051206,132.8,132.76,0.7]
[1763667743899,13.10051206,132.8,132.76,4.01168437]
[1763667744082,9.78882769,132.8,132.77,0.7]
[1763667744407,9.78882769,132.83,132.79,3.31168437]
[1763667744619,9.78882769,132.83,132.81,3.31168437]
[1763667744777,9.78882769,132.84,132.82,3.31168437]
[1763667744976,9.78882769,132.87,132.83,3.31168437]
[1763667745684,9.78882769,132.85,132.82,3.31168437]
[1763667745878,5.13168437,132.84,132.79,0.7]
[1763667746083,5.13168437,132.84,132.79,4.01168437]
[1763667746479,5.83168437,132.84,132.8,0.7]
[1763667746891,9.78882769,132.83,132.8,0.7]
[1763667747099,9.78882769,132.83,132.8,8.5838812]
[1763667747484,1.82,132.84,132.82,7.8838812]
[1763667747698,50.0,132.86,132.83,7.8838812]
[1763667747890,9.78882769,132.86,132.83,8.5838812]
[1763667748498,9.78882769,132.86,132.83,0.7]
[1763667748724,9.78882769,132.86,132.83,8.5838812]
[1763667749002,9.78882769,132.86,132.83,0.7]
[1763667749924,18.12096,132.87,132.85,7.8838812]
[1763667750082,9.98882769,132.89,132.85,7.8838812]
[1763667750288,18.12096,132.88,132.85,8.5738812]
[1763667750589,18.56270889,132.89,132.84,8.5738812]
[1763667750813,18.12096,132.88,132.84,8.5738812]
[1763667750991,18.12096,132.88,132.84,7.8838812]
[1763667751198,18.12096,132.88,132.85,8.5738812]
[1763667751584,9.98882769,132.89,132.86,8.5738812]
[1763667751994,28.10978769,132.89,132.87,0.69]
[1763667752187,9.98882769,132.89,132.87,0.69]
[1763667752388,9.98882769,132.89,132.85,61.2]
[1763667752604,9.98882769,132.89,132.86,8.5738812]
[1763667752806,0.2,132.89,132.86,8.5738812]
[1763667753013,0.2,132.89,132.87,0.69]
[1763667753504,0.2,132.89,132.87,8.5738812]
[1763667753684,0.2,132.89,132.88,7.8838812]
[1763667753912,0.2,132.89,132.88,8.5738812]
[1763667754510,0.2,132.89,132.86,7.8838812]
[1763667754711,0.2,132.89,132.88,8.5738812]
[1763667755596,0.2,132.89,132.88,0.69]
[1763667755799,0.2,132.89,132.88,8.5738812]
[1763667756397,0.2,132.92,132.89,18.12096]
[1763667756708,0.2,132.93,132.89,18.12096]
[1763667756709,0.2,132.93,132.92,18.12096]
[1763667756911,0.2,132.94,132.92,26.0048412]
[1763667757115,0.2,132.94,132.93,8.5738812]
[1763667757287,0.2,132.96,132.95,18.12096]
[1763667757593,0.2,133.01,132.95,7.8838812]
[1763667757800,0.2,133.01,132.99,7.8838812]
[1763667758017,0.2,133.01,132.98,7.8838812]
[1763667758191,0.2,133.01,132.97,0.69]
[1763667758192,0.2,133.01,133.0,7.8838812]
[1763667758588,0.69,133.08,133.0,8.5738812]
[1763667758788,10.3938812,133.1,133.01,0.69]
[1763667759054,10.3938812,133.1,133.05,7.8838812]
[1763667759225,9.78882769,133.09,133.05,7.8838812]
[1763667759526,0.69,133.09,133.05,7.8838812]
[1763667759824,0.69,133.09,133.06,7.8838812]
[1763667760000,58.5738812,133.11,133.06,7.8838812]
[1763667760195,50.69,133.11,133.07,7.8838812]
[1763667760410,9.78882769,133.1,133.07,7.8838812]
[1763667760613,50.69,133.11,133.07,7.8838812]
[1763667760614,50.0,133.11,133.07,7.8838812]
[1763667760814,0.69,133.1,133.06,7.8838812]
[1763667761127,10.47882769,133.1,133.06,7.8838812]
[1763667761918,0.69,133.13,133.09,7.8838812]
[1763667762099,0.69,133.13,133.09,8.5738812]
[1763667762302,0.69,133.13,133.09,7.8838812]
[1763667762614,0.69,133.13,133.05,18.12096]
[1763667762615,9.78882769,133.15,133.1,8.5738812]
[1763667762817,9.8038812,133.16,133.11,7.8838812]
[1763667763002,10.47882769,133.15,133.1,0.69]
[1763667763197,9.88882769,133.16,133.12,7.8838812]
[1763667763396,9.88882769,133.16,133.13,7.8838812]
[1763667763617,0.1,133.16,133.13,7.8838812]
[1763667763811,0.1,133.16,133.11,0.69]
[1763667763812,0.1,133.16,133.15,7.8838812]
[1763667764090,0.1,133.16,133.15,26.0048412]
[1763667764320,0.1,133.16,133.15,26.6948412]
[1763667764909,0.1,133.16,133.15,18.81096]
[1763667765096,0.1,133.16,133.15,26.6948412]
[1763667766113,0.1,133.16,133.15,8.5738812]
[1763667768402,0.1,133.16,133.15,7.8838812]
[1763667769811,0.1,133.16,133.1,1.82]
[1763667769812,9.78882769,133.15,133.1,1.82]
[1763667770121,17.67270889,133.11,133.04,22.6037424]
[1763667770423,7.8838812,133.1,133.05,7.8838812]
[1763667770603,17.67270889,133.09,133.04,7.8838812]
[1763667770920,17.67270889,133.09,133.02,1.82]
[1763667770921,9.78882769,133.07,133.02,9.7038812]
[1763667771219,9.78882769,133.09,133.03,0.66]
[1763667771415,0.7,133.08,133.04,7.8838812]
[1763667771722,9.78882769,133.07,133.03,7.8838812]
[1763667772221,0.7,133.06,133.03,7.8838812]
[1763667772718,0.7,133.06,133.0,7.8838812]
[1763667772719,17.67270889,133.05,133.0,7.8838812]
[1763667772923,9.78882769,133.03,132.99,7.8838812]
[1763667773107,10.48882769,133.03,133.0,7.8838812]
[1763667773304,0.7,133.03,132.99,7.8838812]
[1763667773896,0.7,133.03,132.98,10.3638812]
[1763667774092,8.5838812,133.03,132.98,1.82]
[1763667774324,8.5838812,133.03,132.97,7.8838812]
[1763667774325,9.78882769,133.02,132.97,7.8838812]
[1763667774524,0.7,133.03,132.97,0.66]
[1763667774723,0.7,133.03,132.98,7.8838812]
[1763667775027,0.7,133.03,132.99,7.8838812]
[1763667775194,0.7,133.03,132.96,18.12096]
[1763667775195,0.7,133.03,132.98,7.8838812]
[1763667775616,0.7,133.03,132.97,26.0048412]
[1763667775617,9.78882769,133.02,132.97,26.0048412]
[1763667776022,0.7,133.01,132.97,26.0048412]
[1763667776707,9.78882769,133.03,132.99,7.8838812]
[1763667777032,10.48882769,133.03,132.99,7.8838812]
[1763667777227,0.7,133.02,132.99,7.8838812]
[1763667777542,10.48882769,133.06,133.01,7.8838812]
[1763667777744,0.7,133.11,133.05,7.8838812]
[1763667778037,0.7,133.11,133.07,7.8838812]
[1763667778247,9.78882769,133.1,133.04,18.12096]
[1763667778547,9.78882769,133.08,133.04,7.8838812]
[1763667778710,9.78882769,133.08,133.03,7.8838812]
[1763667778906,0.7,133.07,133.03,7.8838812]
[1763667780439,0.7,133.1,133.06,7.8838812]
[1763667780617,50.1,133.16,133.09,7.8838812]
[1763667780823,0.7,133.14,133.11,7.8838812]
[1763667781027,0.1,133.16,133.13,7.8838812]
[1763667781330,0.1,133.16,133.14,7.8838812]
[1763667781523,0.1,133.16,133.15,7.8838812]
[1763667782441,0.1,133.16,133.11,1.82]
[1763667782442,0.1,133.16,133.11,2.48]
[1763667782649,0.1,133.16,133.09,18.12096]
[1763667782650,27.90978769,133.15,133.07,1.82]
[1763667782824,7.8838812,133.12,133.07,1.82]
[1763667783026,7.8838812,133.12,133.06,7.8838812]
[1763667783027,9.78882769,133.11,133.06,7.8838812]
[1763667783226,10.48882769,133.11,133.05,18.12096]
[1763667783527,10.48882769,133.11,133.03,1.82]
[1763667783528,17.67270889,133.09,133.03,9.7038812]
[1763667783714,17.67270889,133.09,132.97,7.8838812]
[1763667783715,9.78882769,133.07,132.99,2.48]
[1763667783919,9.78882769,133.05,133.0,7.8838812]
[1763667784228,9.78882769,133.05,132.96,9.7038812]
[1763667784229,9.78882769,133.08,133.04,7.8838812]
[1763667784432,9.78882769,133.08,133.05,7.8838812]
[1763667784632,9.78882769,133.08,133.04,7.8838812]
[1763667784830,0.7,133.09,133.05,7.8838812]
[1763667785031,0.1,133.16,133.08,7.8838812]
[1763667785032,59.78882769,133.14,133.08,7.8838812]
[1763667785246,9.78882769,133.13,133.08,7.8838812]
[1763667785435,9.78882769,133.13,133.04,0.66]
[1763667785436,9.78882769,133.11,133.04,0.66]
[1763667785622,9.78882769,133.11,133.06,7.8838812]
[1763667785949,10.48882769,133.11,133.06,7.8838812]
[1763667786152,0.7,133.1,133.05,7.8838812]
[1763667786447,0.7,133.1,133.06,7.8838812]
[1763667786830,12.30882769,133.13,133.09,7.8838812]
[1763667787032,12.30882769,133.13,133.04,18.78096]
[1763667787033,10.48882769,133.12,133.04,18.78096]
[1763667787332,68.37270889,133.12,133.04,18.12096]
[1763667787521,0.7,133.11,133.06,7.8838812]
[1763667788024,8.5838812,133.11,133.05,7.8838812]
[1763667788528,9.78882769,133.09,133.05,7.8838812]
[1763667788955,0.7,133.09,133.06,12.30458748]
[1763667789353,9.78882769,133.11,133.07,12.30458748]
[1763667789652,10.48882769,133.11,133.07,12.30458748]
[1763667790245,1.82,133.12,133.07,12.30458748]
[1763667790246,81.12554748,133.14,133.08,12.30458748]
[1763667790432,0.7,133.14,133.1,12.30458748]
[1763667790622,0.7,133.14,133.07,0.66]
[1763667790623,1.82,133.15,133.11,12.30458748]
[1763667790823,2.52,133.15,133.11,12.30458748]
[1763667791224,2.52,133.15,133.12,12.30458748]
[1763667791432,2.52,133.15,133.09,18.12096]
[1763667791648,0.7,133.15,133.12,12.30458748]
[1763667791822,0.7,133.15,133.11,12.30458748]
[1763667792026,0.7,133.15,133.1,12.30458748]
[1763667792721,0.7,133.15,133.11,12.30458748]
[1763667792945,9.88882769,133.16,133.12,12.30458748]
[1763667793260,9.78882769,133.14,133.09,12.30458748]
[1763667793428,9.78882769,133.14,133.1,12.30458748]
[1763667793750,0.7,133.14,133.08,0.66]
[1763667793973,0.7,133.14,133.1,12.30458748]
[1763667794842,0.7,133.14,133.08,0.66]
[1763667794843,0.7,133.14,133.09,12.30458748]
[1763667795352,9.78882769,133.13,133.06,1.82]
[1763667795648,9.78882769,133.13,133.08,12.30458748]
[1763667795851,10.48882769,133.13,133.09,12.30458748]
[1763667796357,10.48882769,133.13,133.07,12.30458748]
[1763667796358,0.7,133.12,133.07,12.30458748]
[1763667796740,0.7,133.12,133.08,12.30458748]
[1763667797070,0.7,133.12,133.06,1.82]
[1763667797071,11.60882769,133.14,133.09,12.30458748]
[1763667797227,68.12096,133.15,133.11,12.30458748]
[1763667797228,0.7,133.15,133.11,12.30458748]
[1763667797627,9.88882769,133.16,133.11,0.66]
[1763667797628,0.1,133.16,133.11,0.66]
[1763667797856,10.58882769,133.16,133.12,12.30458748]
[1763667798273,0.7,133.15,133.12,12.30458748]
[1763667798758,9.88882769,133.16,133.12,12.30458748]
[1763667798946,0.7,133.15,133.12,12.30458748]
[1763667799462,0.7,133.15,133.11,12.30458748]
[1763667799665,0.1,133.16,133.09,0.66]
[1763667799833,0.1,133.16,133.13,12.30458748]
[1763667800364,0.76,133.16,133.12,12.30458748]
[1763667800742,22.09341517,133.15,133.06,0.67]
[1763667800945,59.78882769,133.15,133.1,12.30458748]
[1763667801146,0.66,133.14,133.1,12.30458748]
[1763667801435,0.66,133.14,133.11,12.30458748]
[1763667801860,9.78882769,133.13,133.08,18.12096]
[1763667802156,9.78882769,133.13,133.08,12.30458748]
[1763667802456,0.66,133.12,133.08,12.30458748]
[1763667802659,62.30458748,133.15,133.1,12.30458748]
[1763667802840,20.04096,133.16,133.1,12.30458748]
[1763667802841,0.66,133.13,133.1,12.30458748]
[1763667803360,0.66,133.13,133.07,0.67]
[1763667803361,0.66,133.13,133.09,12.30458748]
[1763667804136,0.66,133.13,133.07,0.67]
[1763667804137,9.78882769,133.12,133.08,12.30458748]
[1763667804357,9.78882769,133.12,133.07,12.30458748]
[1763667804559,0.66,133.11,133.07,12.30458748]
[1763667804747,0.66,133.11,133.06,12.30458748]
[1763667804952,12.96458748,133.11,133.05,30.42554748]
[1763667805155,12.96458748,133.11,133.06,30.42554748]
[1763667805347,0.66,133.1,133.06,30.42554748]
[1763667805868,9.78882769,133.09,133.05,12.30458748]
[1763667806234,0.66,133.09,133.05,12.30458748]
[1763667806441,0.66,133.11,133.06,12.97458748]
[1763667806764,9.78882769,133.11,133.06,12.30458748]
[1763667806959,0.66,133.1,133.06,12.30458748]
[1763667807163,0.66,133.1,133.07,12.30458748]
[1763667807472,9.78882769,133.11,133.08,12.30458748]
[1763667807635,10.44882769,133.11,133.07,12.30458748]
[1763667807840,10.44882769,133.11,133.06,12.30458748]
[1763667808046,0.66,133.1,133.06,12.30458748]
[1763667809540,0.66,133.1,133.02,1.82]
[1763667809541,9.78882769,133.09,133.05,12.30458748]
[1763667810057,1.82,133.12,133.07,12.30458748]
[1763667810058,2.53,133.12,133.07,12.30458748]
[1763667810377,9.78882769,133.09,133.03,12.30458748]
[1763667810552,22.09341517,133.09,133.03,12.30458748]
[1763667810747,0.71,133.08,133.03,12.30458748]
[1763667811654,0.71,133.08,133.02,1.82]
[1763667811655,9.78882769,133.07,133.02,1.82]
[1763667811971,9.78882769,133.07,133.02,14.12458748]
[1763667812170,0.71,133.06,133.02,14.12458748]
[1763667812371,0.71,133.06,133.01,12.30458748]
[1763667812562,0.71,133.06,133.0,18.82096]
[1763667812563,0.71,133.06,133.02,12.30458748]
[1763667812869,0.71,133.06,133.0,18.12096]
[1763667812870,22.09341517,133.05,132.96,0.7]
[1763667813167,22.09341517,133.05,132.99,12.30458748]
[1763667813372,9.78882769,133.03,132.99,12.30458748]
[1763667813573,9.78882769,133.03,133.0,12.30458748]
[1763667813955,0.71,133.03,133.0,12.30458748]
[1763667814551,0.71,133.03,132.99,12.30458748]
[1763667814950,0.71,133.03,132.96,1.82]
[1763667814951,9.78882769,133.02,132.96,1.82]
[1763667815182,9.78882769,133.02,132.96,12.30458748]
[1763667815183,10.49882769,133.01,132.96,12.30458748]
[1763667815656,0.71,133.0,132.96,12.30458748]
[1763667816558,0.71,133.0,132.94,12.30458748]
[1763667816559,9.78882769,132.99,132.94,12.30458748]
[1763667816965,9.78882769,132.97,132.93,12.30458748]
[1763667817573,0.71,132.96,132.93,12.30458748]
[1763667817750,9.78882769,132.98,132.93,12.30458748]
[1763667817947,0.71,132.97,132.93,12.30458748]
[1763667818881,0.71,132.97,132.9,1.82]
[1763667818882,9.78882769,132.95,132.9,1.82]
[1763667819056,9.78882769,132.95,132.9,12.30458748]
[1763667819260,0.71,132.94,132.9,12.30458748]
[1763667820671,0.71,132.94,132.89,12.30458748]
[1763667820852,9.78882769,132.91,132.87,12.40458748]
[1763667821051,9.78882769,132.92,132.87,12.40458748]
[1763667821263,68.83096,132.94,132.89,12.30458748]
[1763667821467,10.49882769,132.93,132.89,12.30458748]
[1763667821664,10.49882769,132.93,132.88,12.30458748]
[1763667821665,0.71,132.92,132.88,12.30458748]
[1763667821986,68.12096,132.94,132.89,12.30458748]
[1763667822162,18.83096,132.94,132.89,12.30458748]
[1763667822367,0.71,132.93,132.89,12.30458748]
[1763667822974,0.71,132.93,132.87,0.8]
[1763667823173,0.71,132.93,132.89,12.30458748]
[1763667823376,61.60882769,132.96,132.9,0.7]
[1763667823377,10.49882769,132.96,132.9,0.7]
[1763667823566,9.78882769,132.94,132.91,12.30458748]
[1763667823886,0.71,132.95,132.92,12.30458748]
[1763667824084,22.09341517,132.97,132.92,12.30458748]
[1763667824085,10.49882769,132.97,132.92,12.30458748]
[1763667824284,0.71,132.96,132.88,19.94096]
[1763667824470,0.71,132.96,132.93,12.30458748]
[1763667824665,9.78882769,132.97,132.93,12.30458748]
[1763667824865,10.49882769,132.97,132.93,12.30458748]
[1763667825078,10.49882769,132.97,132.91,12.30458748]
[1763667825079,0.71,132.96,132.91,12.30458748]
[1763667825465,0.71,132.96,132.92,12.30458748]
[1763667825664,0.71,132.96,132.91,12.30458748]
[1763667826107,0.71,132.98,132.94,12.30458748]
[1763667826984,72.09341517,133.0,132.96,12.30458748]
[1763667826985,10.49882769,133.0,132.96,12.30458748]
[1763667827291,0.71,132.99,132.96,12.30458748]
[1763667827490,0.71,132.99,132.95,12.30458748]
[1763667827790,9.78882769,132.98,132.95,12.30458748]
[1763667828169,22.09341517,132.96,132.88,61.2]
[1763667828390,9.78882769,132.94,132.89,12.30458748]
[1763667828793,0.71,132.93,132.89,13.00458748]
[1763667828988,0.71,132.93,132.9,12.30458748]
[1763667829201,10.49882769,132.95,132.9,12.30458748]
[1763667829686,62.30458748,132.96,132.91,13.00458748]
[1763667829687,9.78882769,132.96,132.91,13.00458748]
[1763667829888,10.49882769,132.96,132.92,12.30458748]
[1763667830076,0.71,132.95,132.92,12.30458748]
[1763667830588,9.78882769,132.96,132.92,12.30458748]
[1763667830788,0.68,132.95,132.92,12.30458748]
[1763667831163,0.68,132.95,132.9,18.12096]
[1763667831674,0.68,132.95,132.91,12.30458748]
[1763667832074,1.82,132.97,132.93,12.30458748]
[1763667832075,2.5,132.97,132.93,12.30458748]
[1763667832573,0.68,132.96,132.92,73.50458748]
[1763667832993,0.68,132.96,132.92,61.2]
[1763667833691,9.78882769,132.95,132.92,61.2]
[1763667833894,0.68,132.94,132.92,61.2]
[1763667834094,0.68,132.94,132.9,91.62554748]
[1763667834277,0.68,132.94,132.91,12.30458748]
[1763667834484,9.78882769,132.96,132.91,12.30458748]
[1763667834684,0.68,132.95,132.91,12.30458748]
[1763667835001,12.30458748,132.93,132.9,61.2]
[1763667835180,12.30458748,132.93,132.88,12.30458748]
[1763667835387,0.68,132.92,132.87,74.26458748]
[1763667835587,0.68,132.92,132.88,12.30458748]
[1763667838312,60.46882769,132.94,132.89,12.96458748]
[1763667838500,0.68,132.93,132.88,12.30458748]
[1763667838706,22.09341517,132.92,132.87,0.1]
[1763667838890,0.68,132.91,132.87,0.1]
[1763667839213,22.09341517,132.9,132.87,0.1]
[1763667839588,0.68,132.89,132.87,0.1]
[1763667840280,50.0,132.92,132.87,0.1]
[1763667840482,0.68,132.91,132.87,12.40458748]
[1763667840797,0.68,132.91,132.87,13.06458748]
[1763667841112,14.12458748,132.93,132.89,12.30458748]
[1763667841113,1.82,132.93,132.89,12.30458748]
[1763667841411,1.82,132.93,132.87,0.1]
[1763667841412,0.68,132.95,132.91,12.30458748]
[1763667841607,50.0,132.96,132.91,12.30458748]
[1763667841608,59.78882769,132.96,132.91,12.30458748]
[1763667841789,0.68,132.95,132.91,12.30458748]
[1763667842001,0.68,132.96,132.92,12.30458748]
[1763667842193,0.68,132.96,132.91,0.66]
[1763667842194,0.68,132.95,132.93,12.30458748]
[1763667842392,0.68,132.95,132.9,0.66]
[1763667842635,12.98458748,132.95,132.88,18.12096]
[1763667842811,0.68,132.95,132.9,12.30458748]
[1763667842984,0.68,132.95,132.92,12.30458748]
[1763667843317,10.46882769,132.98,132.93,12.30458748]
[1763667843486,10.46882769,132.98,132.89,0.66]
[1763667843487,0.68,132.98,132.94,12.30458748]
[1763667843813,0.68,132.98,132.95,12.30458748]
[1763667844005,0.68,132.98,132.92,0.66]
[1763667844203,0.68,132.98,132.95,12.30458748]
[1763667844592,0.68,132.98,132.92,0.66]
[1763667844794,0.68,132.98,132.91,1.82]
[1763667844795,12.98458748,132.98,132.93,12.30458748]
[1763667845001,0.68,132.97,132.93,12.30458748]
[1763667845518,0.68,132.97,132.94,12.30458748]
[1763667845707,0.68,132.97,132.93,12.30458748]
[1763667846211,0.68,132.99,132.95,12.30458748]
[1763667846407,1.82,133.0,132.96,12.30458748]
[1763667846606,0.68,132.99,132.95,12.30458748]
[1763667847195,2.5,133.0,132.97,12.30458748]
[1763667847510,0.68,132.99,132.96,12.30458748]
[1763667848299,0.68,132.99,132.95,12.30458748]
[1763667848300,10.46882769,132.99,132.95,12.30458748]
[1763667848699,0.68,132.98,132.95,12.30458748]
[1763667849615,0.68,132.98,132.93,0.66]
[1763667849813,0.68,132.98,132.95,12.30458748]
[1763667850506,9.78882769,132.97,132.92,12.30458748]
[1763667850906,9.78882769,132.97,132.9,7.86843785]
[1763667850907,9.78882769,132.95,132.9,7.86843785]
[1763667851310,0.68,132.94,132.9,7.86843785]
[1763667851521,0.68,132.94,132.88,1.82]
[1763667851522,2.5,132.96,132.92,7.86843785]
[1763667852028,0.68,132.95,132.91,25.98939785]
[1763667852211,0.68,132.95,132.91,7.86843785]
[1763667852527,10.46882769,132.95,132.9,7.86843785]
[1763667852696,0.68,132.94,132.9,8.52843785]
[1763667853022,0.68,132.94,132.88,2.48]
[1763667853218,0.68,132.94,132.91,7.86843785]
[1763667853400,0.68,132.94,132.88,1.82]
[1763667853401,9.78882769,132.93,132.88,1.82]
[1763667853601,9.78882769,132.93,132.9,7.86843785]
[1763667853800,0.68,132.92,132.9,7.86843785]
[1763667854019,0.68,132.95,132.9,7.86843785]
[1763667854243,0.68,132.94,132.91,7.86843785]
[1763667854398,7.86843785,132.99,132.93,7.86843785]
[1763667854726,0.68,133.01,132.97,7.86843785]
[1763667854898,7.86843785,133.01,132.94,0.66]
[1763667855099,10.46882769,133.0,132.95,7.86843785]
[1763667855619,0.68,132.99,132.94,7.86843785]
[1763667855999,9.78882769,132.98,132.92,2.48]
[1763667856211,59.78882769,132.98,132.93,7.86843785]
[1763667856497,10.46882769,132.98,132.94,7.86843785]
[1763667856723,57.86843785,133.0,132.94,7.86843785]
[1763667857027,0.68,132.98,132.94,7.86843785]
[1763667857831,9.78882769,132.99,132.95,0.66]
[1763667857996,0.68,132.98,132.92,2.48]
[1763667858195,0.68,132.98,132.94,7.86843785]
[1763667858392,0.68,132.98,132.95,7.86843785]
[1763667859424,50.0,133.0,132.93,0.66]
[1763667859425,0.68,133.05,132.97,7.86843785]
[1763667859654,0.68,133.07,133.03,7.86843785]